fUSD/lending_fUSD_20240223
["ID","MTS","AMOUNT","RATE_DAILY","PERIOD"]
[314932016,1708687832720,-226.1,0.00026387,2]
[314932017,1708687832730,-541.25,0.00026459,2]
[314932018,1708687832740,-1785.06,0.00026496,2]
[314932019,1708687832751,-226.1,0.00026523,2]
[314932020,1708687832761,-226.1,0.00026658,2]
[314932021,1708687833087,-156.47,0.00026662,2]
[314932022,1708687833097,-189.67,0.00026694,2]
[314932023,1708687833107,-406.47,0.00026741,2]
[314932024,1708687833116,-918.06,0.00026741,2]
[314932025,1708687833125,-226.1,0.00026793,2]
[314932026,1708687833135,-156.47,0.00026828,2]
[314932027,1708687833144,-918.06,0.00026841,2]
[314932028,1708687833153,-406.47,0.00026841,2]
[314932029,1708687833162,-918.06,0.00026849,2]
[314932030,1708687833171,-918.06,0.00026849,2]
[314932031,1708687833181,-620.92,0.00026849,2]
[314932032,1708687833190,-150.0,0.00026871,2]
[314932033,1708687833199,-176.76601754,0.00026875,2]
[314932034,1708687833208,-1814.65,0.00026889,2]
[314932035,1708687833217,-1807.72,0.00026893,2]
[314932036,1708687833226,-918.06,0.000269,2]
[314932037,1708687833236,-226.1,0.00026928,2]
[314932038,1708687833246,-918.06,0.00026941,2]
[314932039,1708687833255,-918.06,0.00026941,2]
[314932040,1708687833264,-406.47,0.00026941,2]
[314932041,1708687833273,-406.47,0.00026941,2]
[314932042,1708687833283,-166.13,0.00026946,2]
[314932043,1708687833292,-156.47,0.00026995,2]
[314932044,1708687833301,-800.0,0.00027,3]
[314932045,1708687833311,-226.1,0.00027064,2]
[314932046,1708687833320,-156.47,0.00027162,2]
[314932047,1708687833329,-226.1,0.00027199,2]
[314932048,1708687833338,-210.0,0.00027208,2]
[314932049,1708687833348,-210.0,0.00027208,2]
[314932050,1708687833359,-271.45196282,0.00027312,2]
[314932051,1708687833368,-156.47,0.00027328,2]
[314932052,1708687833377,-226.1,0.00027334,2]
[314932053,1708687833386,-2455.0303,0.00027349,2]
[314932054,1708687833395,-800.0,0.0002737,2]
[314932055,1708687833404,-919.64028814,0.00027396,2]
[314932056,1708687833415,-155.0,0.00027397,2]
[314932057,1708687833425,-824.08,0.00027397,2]
[314932058,1708687833434,-2000.0,0.000274,2]
[314932059,1708687833444,-200.66,0.00027402,10]
[314932060,1708687833453,-246.18,0.00027402,10]
[314932061,1708687833463,-205.15,0.00027402,10]
[314932062,1708687833472,-170.96,0.00027402,10]
[314932063,1708687833481,-359.73,0.00027402,2]
[314932064,1708687833490,-160.42119181,0.00027411,2]
[314932065,1708687833500,-500.0,0.00027411,2]
[314932066,1708687833510,-500.0,0.00027411,2]
[314932067,1708687833518,-500.0,0.00027411,2]
[314932068,1708687833527,-500.0,0.00027411,2]
[314932069,1708687833537,-521.35652483,0.00027411,2]
[314932070,1708687833546,-500.0,0.00027411,2]
[314932071,1708687833555,-500.0,0.00027411,2]
[314932072,1708687833565,-500.0,0.00027411,2]
[314932073,1708687833574,-530.02632604,0.00027411,2]
[314932074,1708687833583,-1403.53,0.00027411,2]
[314932075,1708687833592,-500.0,0.00027411,2]
[314932076,1708687833601,-11832.5038,0.00027412,2]
[314932077,1708687833610,-598.2706,0.00027412,2]
[314932078,1708687833621,-1889.2154,0.00027412,2]
[314932079,1708687833630,-148134.72720743,0.00027412,2]
[314932080,1708687833643,-27847.0306,0.00027412,2]
[314932081,1708687833655,-60317.33989257,0.00027412,2]
[314932082,1708687833664,-253.1898,0.00027412,2]
[314932083,1708687833674,-3686.1107,0.00027412,2]
[314932084,1708687833683,-203.42,0.00027425,2]
[314932085,1708687833692,-342.42525584,0.00027448,2]
[314932086,1708687833701,-1002.6138,0.00027448,2]
[314932087,1708687833710,-39586.20374629,0.00027449,2]
[314932088,1708687833719,-226.1,0.0002747,2]
[314932089,1708687833728,-156.47,0.00027495,2]
[314932090,1708687833737,-359.73,0.00027502,2]
[314932091,1708687833747,-345.88326893,0.00027511,15]
[314932092,1708687833756,-369.60047279,0.00027511,15]
[314932093,1708687833766,-100000.0,0.00027512,2]
[314932094,1708687833775,-13382.109,0.00027512,2]
[314932095,1708687833785,-1289.1,0.00027513,2]
[314932096,1708687833794,-150.0,0.00027521,2]
[314932097,1708687833803,-150.0,0.00027531,2]
[314932098,1708687833813,-163.75129832,0.00027544,2]
[314932099,1708687833822,-208.1605,0.00027545,2]
[314932100,1708687833831,-500.0,0.00027548,2]
[314932101,1708687833840,-518.13501508,0.00027548,2]
[314932102,1708687833850,-500.0,0.00027548,2]
[314932103,1708687833859,-500.0,0.00027548,2]
[314932104,1708687833868,-514.88099688,0.00027548,2]
[314932105,1708687833878,-500.0,0.00027548,2]
[314932106,1708687833888,-500.0,0.00027548,2]
[314932107,1708687833897,-1403.53,0.00027548,2]
[314932108,1708687833906,-500.0,0.00027548,2]
[314932109,1708687833915,-824.08,0.00027556,2]
[314932110,1708687833925,-319.56566645,0.00027602,2]
[314932111,1708687833934,-226.1,0.00027605,2]
[314932112,1708687833944,-154.75,0.00027606,2]
[314932113,1708687833953,-749.00547576,0.00027608,2]
[314932114,1708687833963,-994.27702937,0.00027608,2]
[314932115,1708687833973,-1544.63395153,0.00027608,2]
[314932116,1708687833982,-575.8067137,0.00027608,2]
[314932117,1708687833992,-9019.09744599,0.00027608,2]
[314932118,1708687834003,-155.55354129,0.0002761,2]
[314932119,1708687834012,-526.4920987,0.0002761,2]
[314932120,1708687834022,-508.11254731,0.0002761,2]
[314932121,1708687834031,-500.0,0.0002761,2]
[314932122,1708687834041,-500.0,0.0002761,2]
[314932123,1708687834053,-924.37,0.0002761,2]
[314932124,1708687834062,-500.0,0.0002761,2]
[314932125,1708687834071,-505.04280526,0.0002761,2]
[314932126,1708687834081,-510.66416537,0.0002761,2]
[314932127,1708687834091,-532.77724442,0.0002761,2]
[314932128,1708687834100,-578.34288137,0.0002761,2]
[314932129,1708687834110,-500.0,0.0002761,2]
[314932130,1708687834119,-500.0,0.0002761,2]
[314932131,1708687834129,-732.46,0.0002761,2]
[314932132,1708687834138,-4940.08419703,0.00027611,2]
[314932133,1708687834147,-5409.94,0.00027611,2]
[314932134,1708687834156,-500.0,0.00027611,2]
[314932135,1708687834166,-585.12,0.00027611,2]
[314932136,1708687834176,-1157.17,0.00027611,2]
[314932137,1708687834186,-500.0,0.00027611,2]
[314932138,1708687834195,-500.0,0.00027611,2]
[314932139,1708687834204,-564.8,0.00027611,2]
[314932140,1708687834213,-226.90467548,0.00027611,2]
[314932141,1708687834223,-500.0,0.00027611,2]
[314932142,1708687834232,-530.11,0.00027611,2]
[314932143,1708687834241,-1235.37,0.00027611,2]
[314932144,1708687834251,-500.0,0.00027611,2]
[314932145,1708687834260,-7584.27,0.00027611,2]
[314932146,1708687834269,-3746.99,0.00027611,2]
[314932147,1708687834278,-637.13,0.00027611,2]
[314932148,1708687834288,-791.88,0.00027611,2]
[314932149,1708687834297,-602.76,0.00027611,2]
[314932150,1708687834306,-909.61,0.00027611,2]
[314932151,1708687834315,-1374.76,0.00027611,2]
[314932152,1708687834325,-539.86,0.00027611,2]
[314932153,1708687834334,-500.0,0.00027611,2]
[314932154,1708687834344,-1242.91,0.00027611,2]
[314932155,1708687834357,-2031.83,0.00027611,2]
[314932156,1708687834367,-500.0,0.00027611,2]
[314932157,1708687834377,-500.0,0.00027612,2]
[314932158,1708687834390,-800.57,0.00027612,2]
[314932159,1708687834399,-500.0,0.00027612,2]
[314932160,1708687834410,-500.0,0.00027612,2]
[314932161,1708687834420,-500.0,0.00027612,2]
[314932162,1708687834429,-500.0,0.00027612,2]
[314932163,1708687834440,-504.83,0.00027612,2]
[314932164,1708687834449,-500.0,0.00027612,2]
[314932165,1708687834458,-500.0,0.00027612,2]
[314932166,1708687834467,-500.0,0.00027612,2]
[314932167,1708687834476,-500.0,0.00027612,2]
[314932168,1708687834485,-668.38,0.00027612,2]
[314932169,1708687834495,-534.03,0.00027612,2]
[314932170,1708687834505,-500.0,0.00027612,2]
[314932171,1708687834514,-500.0,0.00027612,2]
[314932172,1708687834523,-460.63982211,0.00027612,2]
[314932173,1708687834532,-500.0,0.00027612,2]
[314932174,1708687834541,-500.0,0.00027612,2]
[314932175,1708687834551,-540.01767364,0.00027612,2]
[314932176,1708687834560,-500.0,0.00027612,2]
[314932177,1708687834570,-500.0,0.00027612,2]
[314932178,1708687834579,-500.0,0.00027612,2]
[314932179,1708687834588,-500.0,0.00027612,2]
[314932180,1708687834597,-500.0,0.00027612,2]
[314932181,1708687834606,-692.42,0.00027612,2]
[314932182,1708687834615,-500.0,0.00027612,2]
[314932183,1708687834625,-500.0,0.00027612,2]
[314932184,1708687834634,-161.5032046,0.00027612,2]
[314932185,1708687834643,-500.0,0.00027612,2]
[314932186,1708687834652,-500.0,0.00027612,2]
[314932187,1708687834661,-500.0,0.00027612,2]
[314932188,1708687834670,-500.0,0.00027612,2]
[314932189,1708687834679,-500.0,0.00027612,2]
[314932190,1708687834688,-524.8054415,0.00027612,2]
[314932191,1708687834697,-500.0,0.00027612,2]
[314932192,1708687834706,-500.0,0.00027612,2]
[314932193,1708687834715,-500.0,0.00027612,2]
[314932194,1708687834724,-514.91034094,0.00027612,2]
[314932195,1708687834734,-511.96749209,0.00027612,2]
[314932196,1708687834743,-500.0,0.00027612,2]
[314932197,1708687834753,-500.0,0.00027612,2]
[314932198,1708687834762,-500.0,0.00027612,2]
[314932199,1708687834771,-500.0,0.00027612,2]
[314932200,1708687834781,-525.53,0.00027612,2]
[314932201,1708687834790,-500.0,0.00027612,2]
[314932202,1708687834798,-500.0,0.00027612,2]
[314932203,1708687834807,-500.0,0.00027612,2]
[314932204,1708687834817,-500.0,0.00027612,2]
[314932205,1708687834827,-500.0,0.00027612,2]
[314932206,1708687834839,-500.0,0.00027612,2]
[314932207,1708687834848,-500.0,0.00027612,2]
[314932208,1708687834858,-500.0,0.00027612,2]
[314932209,1708687834867,-512.70942297,0.00027612,2]
[314932210,1708687834876,-500.0,0.00027612,2]
[314932211,1708687834886,-500.0,0.00027612,2]
[314932212,1708687834895,-500.0,0.00027612,2]
[314932213,1708687834904,-546.55,0.00027612,2]
[314932214,1708687834914,-500.0,0.00027612,2]
[314932215,1708687834923,-554.09,0.00027612,2]
[314932216,1708687834932,-500.0,0.00027612,2]
[314932217,1708687834941,-500.0,0.00027612,2]
[314932218,1708687834951,-500.0,0.00027612,2]
[314932219,1708687834960,-500.0,0.00027612,2]
[314932220,1708687834969,-500.0,0.00027612,2]
[314932221,1708687834978,-512.0103959,0.00027612,2]
[314932222,1708687834987,-500.0,0.00027612,2]
[314932223,1708687834998,-500.0,0.00027612,2]
[314932224,1708687835008,-500.0,0.00027612,2]
[314932225,1708687835017,-581.81,0.00027612,2]
[314932226,1708687835027,-500.05,0.00027612,2]
[314932227,1708687835037,-500.0,0.00027612,2]
[314932228,1708687835047,-500.0,0.00027612,2]
[314932229,1708687835057,-500.0,0.00027612,2]
[314932230,1708687835067,-663.14,0.00027612,2]
[314932231,1708687835077,-500.0,0.00027612,2]
[314932232,1708687835086,-500.0,0.00027612,2]
[314932233,1708687835096,-500.0,0.00027612,2]
[314932234,1708687835105,-476.07114977,0.00027612,2]
[314932235,1708687835115,-500.0,0.00027612,2]
[314932236,1708687835124,-500.0,0.00027612,2]
[314932237,1708687835133,-500.0,0.00027612,2]
[314932238,1708687835142,-500.0,0.00027612,2]
[314932239,1708687835153,-705.93,0.00027612,2]
[314932240,1708687835162,-500.0,0.00027612,2]
[314932241,1708687835172,-500.0,0.00027612,2]
[314932242,1708687835181,-689.25,0.00027612,2]
[314932243,1708687835190,-500.0,0.00027612,2]
[314932244,1708687835200,-500.0,0.00027612,2]
[314932245,1708687835209,-500.0,0.00027612,2]
[314932246,1708687835219,-500.0,0.00027612,2]
[314932247,1708687835228,-500.0,0.00027612,2]
[314932248,1708687835237,-500.0,0.00027612,2]
[314932249,1708687835247,-500.0,0.00027612,2]
[314932250,1708687835256,-500.0,0.00027612,2]
[314932251,1708687835266,-500.0,0.00027612,2]
[314932252,1708687835275,-500.0,0.00027612,2]
[314932253,1708687835285,-500.0,0.00027612,2]
[314932254,1708687835295,-1000.0,0.00027612,7]
[314932255,1708687835305,-572.85,0.00027612,2]
[314932256,1708687835314,-500.0,0.00027612,2]
[314932257,1708687835323,-500.0,0.00027612,2]
[314932258,1708687835333,-500.0,0.00027612,2]
[314932259,1708687835343,-500.0,0.00027612,2]
[314932260,1708687835356,-510.39645657,0.00027612,2]
[314932261,1708687835368,-500.0,0.00027612,2]
[314932262,1708687835377,-630.23,0.00027612,2]
[314932263,1708687835387,-576.84,0.00027612,2]
[314932264,1708687835398,-500.0,0.00027612,2]
[314932265,1708687835408,-500.0,0.00027612,2]
[314932266,1708687835417,-500.0,0.00027612,2]
[314932267,1708687835428,-511.12734751,0.00027612,2]
[314932268,1708687835437,-500.0,0.00027612,2]
[314932269,1708687835446,-500.0,0.00027612,2]
[314932270,1708687835455,-500.0,0.00027612,2]
[314932271,1708687835465,-500.0,0.00027612,2]
[314932272,1708687835474,-515.43,0.00027612,2]
[314932273,1708687835484,-500.0,0.00027612,2]
[314932274,1708687835493,-500.0,0.00027612,2]
[314932275,1708687835504,-1417.3,0.00027612,2]
[314932276,1708687835513,-500.0,0.00027612,2]
[314932277,1708687835523,-500.0,0.00027612,2]
[314932278,1708687835533,-500.0,0.00027612,2]
[314932279,1708687835543,-500.0,0.00027612,2]
[314932280,1708687835553,-1164.2,0.00027612,2]
[314932281,1708687835563,-500.0,0.00027612,2]
[314932282,1708687835572,-500.0,0.00027612,2]
[314932283,1708687835582,-569.39,0.00027612,2]
[314932284,1708687835592,-500.0,0.00027612,2]
[314932285,1708687835601,-531.29317898,0.00027612,2]
[314932286,1708687835611,-500.0,0.00027612,2]
[314932287,1708687835621,-500.0,0.00027612,2]
[314932288,1708687835631,-653.62,0.00027612,2]
[314932289,1708687835641,-640.92,0.00027612,2]
[314932290,1708687835650,-1815.94,0.00027613,2]
[314932291,1708687835660,-500.0,0.00027613,2]
[314932292,1708687835669,-359.73,0.00027634,2]
[314932293,1708687835679,-345.88326893,0.00027644,15]
[314932294,1708687835690,-369.60047279,0.00027644,15]
[314932295,1708687835699,-642.79,0.00027644,2]
[314932296,1708687835709,-4847.86,0.00027644,2]
[314932297,1708687835719,-903.96064897,0.00027644,2]
[314932298,1708687835750,-304.13917345,0.00027644,2]
[314932299,1708687835763,-350.86082655,0.00027644,2]
[314932300,1708687835780,-2512.9268575,0.00027644,2]
[314932301,1708687835792,-1213.44810978,0.00027644,2]
[314932302,1708687835804,-3135.31517466,0.00027644,2]
[314932303,1708687835816,-356.59148495,0.00027644,2]
[314932304,1708687835845,-2357.17772414,0.00027644,2]
[314932305,1708687835859,-3902.63,0.00027644,2]
[314932306,1708687835873,-734.38,0.00027644,2]
[314932307,1708687835888,-500.0,0.00027644,2]
[314932308,1708687835899,-1561.14,0.00027644,2]
[314932309,1708687835912,-579.15,0.00027644,2]
[314932310,1708687835927,-651.84,0.00027644,2]
[314932311,1708687835941,-1084.77,0.00027644,2]
[314932312,1708687835955,-1887.89,0.00027644,2]
[314932313,1708687835970,-609.56,0.00027644,2]
[314932314,1708687835984,-12394.29,0.00027644,2]
[314932315,1708687836001,-783.01,0.00027644,2]
[314932316,1708687836014,-3065.32,0.00027644,2]
[314932317,1708687836026,-4064.58,0.00027644,2]
[314932318,1708687836042,-748.74,0.00027644,2]
[314932319,1708687836055,-3606.12,0.00027644,2]
[314932320,1708687836069,-1803.24,0.00027644,2]
[314932321,1708687836082,-500.0,0.00027644,2]
[314932322,1708687836096,-1373.42,0.00027644,2]
[314932323,1708687836110,-500.0,0.00027644,2]
[314932324,1708687836123,-1467.74227579,0.00027644,2]
[314932325,1708687838226,-271.4519628,0.00027362,2]
[314932326,1708687838238,-271.4519628,0.00027412,2]
[314932327,1708687838251,-577.15,0.0002761,2]
[314932328,1708687838262,-526.08631023,0.0002761,2]
[314932329,1708687838274,-644.03911419,0.00027644,2]
[314932330,1708687838285,-1821.20772421,0.00027644,2]
[314932331,1708687838297,-500.0,0.00027644,2]
[314932332,1708687838308,-1085.83,0.00027644,2]
[314932333,1708687838319,-574.06,0.00027644,2]
[314932334,1708687838330,-500.0,0.00027644,2]
[314932335,1708687838340,-5748.3,0.00027644,2]
[314932336,1708687838352,-500.0,0.00027644,2]
[314932337,1708687838365,-220.9128845,0.00027644,2]
[314932338,1708687838388,-562.86380367,0.00027644,2]
[314932339,1708687838416,-500.0,0.00027411,2]
[314932340,1708687838427,-171.27331183,0.00027644,2]
[314932341,1708687838438,-585.26,0.00027644,2]
[314932342,1708687838450,-909.02,0.00027644,2]
[314932343,1708687838461,-932.29,0.00027644,2]
[314932344,1708687838471,-1451.42,0.00027644,2]
[314932345,1708687838482,-654.98,0.00027644,2]
[314932346,1708687838493,-1169.24,0.00027644,2]
[314932347,1708687838506,-808.82,0.00027644,2]
[314932348,1708687838516,-884.15,0.00027644,2]
[314932349,1708687838527,-677.0,0.00027644,2]
[314932350,1708687838538,-606.24,0.00027644,2]
[314932351,1708687838549,-835.13,0.00027644,2]
[314932352,1708687838559,-2229.23,0.00027644,2]
[314932353,1708687838570,-970.48,0.00027644,2]
[314932354,1708687838581,-1003.43,0.00027644,2]
[314932355,1708687838592,-963.02,0.00027644,2]
[314932356,1708687838603,-538.59,0.00027644,2]
[314932357,1708687838614,-556.56,0.00027644,2]
[314932359,1708687838625,-1709.58,0.00027644,2]
[314932361,1708687838635,-529.22432061,0.00027645,2]
[314932363,1708687838645,-500.0,0.00027645,2]
[314932365,1708687838656,-500.0,0.00027645,2]
[314932367,1708687838667,-500.0,0.00027645,2]
[314932368,1708687838678,-500.0,0.00027645,2]
[314932369,1708687838689,-500.0,0.00027645,2]
[314932370,1708687838701,-500.0,0.00027645,2]
[314932371,1708687838712,-500.0,0.00027645,2]
[314932372,1708687838723,-500.0,0.00027645,2]
[314932373,1708687838734,-500.0,0.00027645,2]
[314932374,1708687838745,-202.20918269,0.00027645,2]
[314932375,1708687838756,-500.0,0.00027645,2]
[314932376,1708687838767,-197.9881035,0.00027645,2]
[314932377,1708687838779,-500.0,0.00027645,2]
[314932378,1708687838791,-500.0,0.00027645,2]
[314932379,1708687838802,-150.06410565,0.00027645,2]
[314932380,1708687838813,-500.0,0.00027645,2]
[314932381,1708687838824,-500.0,0.00027645,2]
[314932382,1708687838835,-500.0,0.00027645,2]
[314932383,1708687838847,-151.5153954,0.00027645,2]
[314932384,1708687838857,-500.0,0.00027645,2]
[314932385,1708687838869,-163.51762608,0.00027645,2]
[314932386,1708687838880,-199.40574857,0.00027645,2]
[314932387,1708687838892,-500.0,0.00027645,2]
[314932388,1708687838903,-500.0,0.00027645,2]
[314932389,1708687838915,-500.0,0.00027645,2]
[314932390,1708687838927,-500.2196159,0.00027645,2]
[314932391,1708687838939,-859.67,0.00027645,2]
[314932392,1708687838951,-500.0,0.00027645,2]
[314932393,1708687838963,-189.08077734,0.00027645,2]
[314932394,1708687838974,-248.26016529,0.00027645,2]
[314932395,1708687838985,-153.94587009,0.00027645,2]
[314932396,1708687838997,-500.0,0.00027645,2]
[314932397,1708687839009,-198.40875114,0.00027645,2]
[314932398,1708687839020,-500.0,0.00027645,2]
[314932399,1708687839031,-500.0,0.00027645,2]
[314932400,1708687839042,-500.0,0.00027645,2]
[314932401,1708687839054,-583.94,0.00027645,2]
[314932402,1708687839066,-500.0,0.00027645,2]
[314932403,1708687839077,-150.6904651,0.00027645,2]
[314932404,1708687839088,-500.0,0.00027645,2]
[314932405,1708687839100,-199.506088,0.00027645,2]
[314932406,1708687839112,-500.0,0.00027645,2]
[314932407,1708687839122,-600.25648969,0.00027645,2]
[314932408,1708687839131,-594.6,0.00027645,2]
[314932409,1708687839141,-500.0,0.00027645,2]
[314932410,1708687839150,-547.02056705,0.00027645,2]
[314932411,1708687839159,-152.22148763,0.00027645,2]
[314932412,1708687839169,-500.0,0.00027645,2]
[314932413,1708687839178,-500.0,0.00027645,2]
[314932414,1708687839188,-500.0,0.00027645,2]
[314932415,1708687839197,-500.0,0.00027645,2]
[314932416,1708687839207,-500.0,0.00027645,2]
[314932417,1708687839217,-500.0,0.00027645,2]
[314932418,1708687839227,-591.93,0.00027645,2]
[314932419,1708687839237,-500.0,0.00027645,2]
[314932420,1708687839248,-500.0,0.00027645,2]
[314932421,1708687839257,-500.0,0.00027645,2]
[314932422,1708687839266,-500.0,0.00027645,2]
[314932423,1708687839275,-577.02,0.00027645,2]
[314932424,1708687839284,-500.0,0.00027645,2]
[314932425,1708687839293,-500.0,0.00027645,2]
[314932426,1708687839302,-282.8,0.00027645,2]
[314932427,1708687839311,-500.0,0.00027645,2]
[314932428,1708687839320,-567.19,0.00027645,2]
[314932429,1708687839330,-500.0,0.00027645,2]
[314932430,1708687839339,-500.0,0.00027645,2]
[314932431,1708687839349,-500.0,0.00027645,2]
[314932432,1708687839360,-644.84,0.00027645,2]
[314932433,1708687839370,-564.62,0.00027645,2]
[314932434,1708687839380,-500.0,0.00027645,2]
[314932435,1708687839389,-500.0,0.00027645,2]
[314932436,1708687839398,-500.0,0.00027645,2]
[314932437,1708687839409,-500.0,0.00027645,2]
[314932438,1708687839419,-568.52056414,0.00027645,2]
[314932439,1708687839428,-542.64002395,0.00027645,2]
[314932440,1708687839440,-500.0,0.00027645,2]
[314932441,1708687839449,-500.0,0.00027645,2]
[314932442,1708687839923,-520.59380299,0.00027645,2]
[314932443,1708687839942,-508.82,0.00027645,2]
[314932444,1708687839961,-500.0,0.00027645,2]
[314932445,1708687839978,-529.32063882,0.00027645,2]
[314932446,1708687839987,-500.0,0.00027645,2]
[314932447,1708687839998,-500.0,0.00027645,2]
[314932448,1708687840008,-535.05749709,0.00027645,2]
[314932449,1708687840017,-150.0,0.00027645,2]
[314932450,1708687840026,-500.0,0.00027645,2]
[314932451,1708687840035,-500.0,0.00027645,2]
[314932452,1708687840044,-500.0,0.00027645,2]
[314932453,1708687840054,-500.0,0.00027645,2]
[314932454,1708687840063,-515.5379203,0.00027645,2]
[314932455,1708687840073,-500.0,0.00027645,2]
[314932456,1708687840082,-500.0,0.00027645,2]
[314932457,1708687840091,-482.77895345,0.00027645,2]
[314932458,1708687840101,-500.0,0.00027645,2]
[314932459,1708687840110,-500.0,0.00027645,2]
[314932460,1708687840120,-550.78957824,0.00027645,2]
[314932461,1708687840129,-500.0,0.00027645,2]
[314932462,1708687840139,-500.0,0.00027645,2]
[314932463,1708687840149,-500.0,0.00027645,2]
[314932464,1708687840158,-500.0,0.00027645,2]
[314932465,1708687840167,-790.83,0.00027645,2]
[314932466,1708687840176,-500.0,0.00027645,2]
[314932467,1708687840185,-500.0,0.00027645,2]
[314932468,1708687840194,-500.0,0.00027645,2]
[314932469,1708687840203,-500.0,0.00027645,2]
[314932470,1708687840212,-369.60047278,0.00027645,15]
[314932471,1708687840221,-507.97087577,0.00027645,2]
[314932472,1708687840230,-500.0,0.00027645,2]
[314932473,1708687840239,-500.0,0.00027645,2]
[314932474,1708687840248,-708.94,0.00027645,2]
[314932475,1708687840257,-500.0,0.00027645,2]
[314932476,1708687840266,-500.0,0.00027645,2]
[314932477,1708687840276,-652.21,0.00027645,2]
[314932478,1708687840285,-500.0,0.00027645,2]
[314932479,1708687840295,-502.64672741,0.00027645,2]
[314932480,1708687840304,-500.0,0.00027645,2]
[314932481,1708687840313,-156.78441018,0.00027645,2]
[314932482,1708687840322,-500.0,0.00027645,2]
[314932483,1708687840331,-500.0,0.00027645,2]
[314932484,1708687840340,-500.0,0.00027645,2]
[314932485,1708687840350,-1275.36,0.00027645,2]
[314932486,1708687840359,-500.0,0.00027645,2]
[314932487,1708687840369,-1273.22,0.00027645,2]
[314932488,1708687840378,-500.0,0.00027645,2]
[314932489,1708687840387,-503.0285322,0.00027645,2]
[314932490,1708687840396,-673.53,0.00027645,2]
[314932491,1708687840406,-500.0,0.00027645,2]
[314932492,1708687840415,-964.47,0.00027645,2]
[314932493,1708687840425,-1234.63,0.00027645,2]
[314932494,1708687840434,-4595.02,0.00027645,2]
[314932495,1708687840444,-503.25607826,0.00027645,2]
[314932496,1708687840454,-779.63,0.00027645,2]
[314932497,1708687840463,-500.0,0.00027645,2]
[314932498,1708687840472,-896.56,0.00027645,2]
[314932499,1708687840481,-500.0,0.00027645,2]
[314932500,1708687840490,-510.67489703,0.00027645,2]
[314932501,1708687840500,-500.0,0.00027645,2]
[314932502,1708687840509,-500.0,0.00027645,2]
[314932503,1708687840518,-894.25,0.00027645,2]
[314932504,1708687840528,-500.0,0.00027645,2]
[314932505,1708687840537,-514.66226744,0.00027645,2]
[314932506,1708687840547,-4586.7,0.00027645,2]
[314932507,1708687840557,-500.0,0.00027645,2]
[314932508,1708687840566,-500.0,0.00027645,2]
[314932509,1708687840575,-500.0,0.00027645,2]
[314932510,1708687840585,-505.11276385,0.00027645,2]
[314932511,1708687840594,-500.0,0.00027645,2]
[314932512,1708687840603,-574.31531884,0.00027645,2]
[314932513,1708687840612,-1038.86,0.00027645,2]
[314932514,1708687840622,-3380.8,0.00027645,2]
[314932515,1708687840631,-500.0,0.00027645,2]
[314932516,1708687840641,-409.47246683,0.00027645,2]
[314932517,1708687840650,-1704.96,0.00027645,2]
[314932518,1708687840660,-500.0,0.00027645,2]
[314932519,1708687840669,-500.0,0.00027645,2]
[314932520,1708687840679,-746.86,0.00027645,2]